bitfinex/quotes_BTCUSD_20241201
["timestamp","ask_amount","ask_price","bid_price","bid_amount"]
[1733053510907,0.26322694,97216.0,97215.0,4e-07]
[1733053511134,0.26222694,97216.0,97215.0,4e-07]
[1733053511499,0.26322694,97216.0,97215.0,4e-07]
[1733053511716,0.26222694,97216.0,97215.0,4e-07]
[1733053512247,0.26222694,97216.0,97215.0,0.0030004]
[1733053516841,0.26309144,97216.0,97215.0,0.0030004]
[1733053529789,0.26309144,97216.0,97215.0,0.0030004]
[1733053541503,0.26309144,97216.0,97215.0,4e-07]
[1733053541859,0.26409144,97216.0,97215.0,4e-07]
[1733053542329,0.26309144,97216.0,97215.0,4e-07]
[1733053543018,0.26209144,97216.0,97215.0,4e-07]
[1733053543422,0.26309144,97216.0,97215.0,0.0010004]
[1733053543771,0.26209144,97216.0,97215.0,4e-07]
[1733053543970,0.26209144,97216.0,97215.0,0.0010004]
[1733053544130,0.26309144,97216.0,97215.0,0.0010004]
[1733053545405,0.33939144,97216.0,97215.0,0.0010004]
[1733053545823,0.33939144,97216.0,97214.0,0.0017276]
[1733053545824,0.21759144,97216.0,97214.0,1e-06]
[1733053546068,0.13577641,97215.0,97214.0,1e-06]
[1733053547518,0.13577641,97215.0,97214.0,0.001001]
[1733053547906,0.13577641,97215.0,97214.0,1e-06]
[1733053548704,0.13877641,97215.0,97214.0,1e-06]
[1733053549516,0.13577641,97215.0,97214.0,1e-06]
[1733053550140,0.822924,97214.0,97202.0,0.0017278]
[1733053550342,0.05919994,97203.0,97202.0,0.0017278]
[1733053551379,0.26495394,97203.0,97202.0,0.0017278]
[1733053551605,0.26495394,97203.0,97202.0,0.0023228]
[1733053551827,0.26595394,97203.0,97202.0,0.0023228]
[1733053555085,0.34535394,97203.0,97202.0,0.0023228]
[1733053561140,0.26595394,97203.0,97202.0,0.0023228]
[1733053571758,0.34395394,97203.0,97202.0,0.0023228]
[1733053574733,0.21576294,97199.0,97198.0,8e-07]
[1733053574955,0.48706294,97199.0,97198.0,6.816e-05]
[1733053576106,0.48806294,97199.0,97198.0,0.00106816]
[1733053581925,0.48806294,97199.0,97198.0,6.816e-05]
[1733053582359,0.48906294,97199.0,97198.0,6.816e-05]
[1733053582580,0.48806294,97199.0,97198.0,6.816e-05]
[1733053582801,0.48706294,97199.0,97198.0,6.816e-05]
[1733053583248,0.48806294,97199.0,97198.0,6.816e-05]
[1733053583663,0.48706294,97199.0,97198.0,6.816e-05]
[1733053583832,0.48806294,97199.0,97198.0,6.816e-05]
[1733053584055,0.48906294,97199.0,97198.0,6.816e-05]
[1733053589057,0.48992724,97199.0,97198.0,6.816e-05]
[1733053593621,0.26452724,97199.0,97198.0,6.816e-05]
[1733053593835,0.2545273,97199.0,97198.0,6.816e-05]
[1733053594062,0.26452724,97199.0,97198.0,6.816e-05]
[1733053596765,0.2545273,97199.0,97198.0,6.816e-05]
[1733053597214,0.26452724,97199.0,97198.0,6.816e-05]
[1733053598517,0.34472724,97199.0,97198.0,6.816e-05]
[1733053600373,0.13896424,97199.0,97184.0,0.0009898]
[1733053600623,0.205793,97185.0,97184.0,0.0009898]
[1733053601108,0.205793,97185.0,97184.0,0.10383501]
[1733053602292,0.206793,97185.0,97184.0,0.10383501]
[1733053603494,0.206793,97185.0,97184.0,0.10683501]
[1733053606773,0.20906958,97185.0,97184.0,0.10683501]
[1733053609583,0.20806958,97185.0,97184.0,0.10683501]
[1733053609846,0.20806958,97185.0,97184.0,0.10383501]
[1733053610064,0.20806958,97185.0,97184.0,0.10583501]
[1733053610502,0.20806958,97185.0,97184.0,0.10383501]
[1733053611158,0.20906958,97185.0,97184.0,0.10383501]
[1733053611596,0.20806958,97185.0,97184.0,0.10383501]
[1733053611785,0.20906958,97185.0,97184.0,0.10383501]
[1733053611915,0.20906958,97185.0,97184.0,0.10656361]
[1733053612550,0.20906958,97185.0,97184.0,0.10556361]
[1733053612767,0.20906958,97185.0,97184.0,0.10656361]
[1733053613517,0.20906958,97185.0,97184.0,0.10556361]
[1733053613761,0.20906958,97185.0,97184.0,0.10656361]
[1733053614825,0.20806958,97185.0,97184.0,0.10656361]
[1733053615232,0.20906958,97185.0,97184.0,0.10556361]
[1733053615429,0.20906958,97185.0,97184.0,0.10656361]
[1733053615876,0.20906958,97185.0,97184.0,0.10556361]
[1733053616247,0.20906958,97185.0,97184.0,0.10656361]
[1733053616445,0.20806958,97185.0,97184.0,0.10656361]
[1733053616802,0.20806958,97185.0,97184.0,0.10556361]
[1733053617576,0.20806958,97185.0,97184.0,0.10656361]
[1733053618011,0.20906958,97185.0,97184.0,0.10656361]
[1733053619094,0.20906958,97185.0,97184.0,0.10479122]
[1733053631319,0.25866958,97185.0,97184.0,0.10479122]
[1733053631543,0.256393,97185.0,97184.0,0.10479122]
[1733053632700,0.26639294,97185.0,97184.0,0.0017286]
[1733053632918,0.34189294,97185.0,97184.0,0.0027286]
[1733053633589,0.34089294,97185.0,97184.0,0.0017286]
[1733053633823,0.34189294,97185.0,97184.0,0.0017286]
[1733053634339,0.39766111,97185.0,97184.0,0.0017286]
[1733053634792,0.34089294,97185.0,97184.0,0.0017286]
[1733053635008,0.34189294,97185.0,97184.0,0.0017286]
[1733053635228,0.34089294,97185.0,97184.0,0.0017286]
[1733053635705,0.34189294,97185.0,97184.0,0.0017286]
[1733053637075,0.34289294,97185.0,97184.0,0.0017286]
[1733053637298,0.34375734,97185.0,97184.0,0.0017286]
[1733053637517,0.34275734,97185.0,97184.0,0.0017286]
[1733053639092,0.34375734,97185.0,97184.0,0.0017286]
[1733053650038,0.34375734,97185.0,97184.0,0.2017286]
[1733053654889,0.34375734,97185.0,97184.0,0.1802186]
[1733053661401,0.34375734,97185.0,97184.0,0.0773186]
[1733053661838,0.34375734,97185.0,97184.0,0.078183]
[1733053675872,0.34375734,97185.0,97184.0,0.0008644]
[1733053680466,0.21865734,97185.0,97184.0,0.10370961]
[1733053680701,0.2086574,97185.0,97184.0,0.10370961]
[1733053682648,0.21865734,97185.0,97184.0,0.10370961]
[1733053685133,0.26505734,97185.0,97184.0,0.10370961]
[1733053685346,0.26505734,97185.0,97184.0,0.0008644]
[1733053691018,0.26505734,97185.0,97184.0,4e-07]
[1733053691260,0.27505709,97185.0,97184.0,4e-07]
[1733053692935,0.00999994,97181.0,97180.0,6e-07]
[1733053693178,0.0586769,97181.0,97180.0,6e-07]
[1733053694342,0.0596769,97181.0,97180.0,6e-07]
[1733053695214,0.0586769,97181.0,97180.0,6e-07]
[1733053695664,0.0616769,97181.0,97180.0,6e-07]
[1733053697164,0.0586769,97181.0,97180.0,6e-07]
[1733053697377,0.0586769,97181.0,97180.0,0.0008646]
[1733053697597,0.0616769,97181.0,97180.0,0.0008646]
[1733053698089,0.0586769,97181.0,97180.0,0.0008646]
[1733053698303,0.0616769,97181.0,97180.0,0.0008646]
[1733053705332,0.07167665,97181.0,97180.0,6e-07]
[1733053705553,0.07167665,97181.0,97176.0,0.1804036]
[1733053705554,0.05799994,97177.0,97176.0,0.1804036]
[1733053705773,0.06027694,97177.0,97176.0,0.1804036]
[1733053707594,0.06127694,97177.0,97176.0,0.1804036]
[1733053708444,0.06027694,97177.0,97176.0,0.1804036]
[1733053708651,0.06327694,97177.0,97176.0,0.1804036]
[1733053709300,0.06027694,97177.0,97176.0,0.1804036]
[1733053709974,0.06027694,97177.0,97176.0,0.1812676]
[1733053710670,0.06427694,97177.0,97176.0,0.1812676]
[1733053711160,0.06027694,97177.0,97176.0,0.1812676]
[1733053711612,0.06327694,97177.0,97176.0,0.1812676]
[1733053712056,0.06027694,97177.0,97176.0,0.0783626]
[1733053712478,0.06427694,97177.0,97176.0,0.0783626]
[1733053713154,0.06427694,97177.0,97176.0,0.0166196]
[1733053713379,0.41481194,97176.0,97174.0,0.0017282]
[1733053715440,0.41781194,97176.0,97174.0,0.0017282]
[1733053715663,0.50601169,97176.0,97175.0,4.9e-07]
[1733053715883,0.50301169,97176.0,97175.0,4.9e-07]
[1733053716091,0.50701169,97176.0,97175.0,4.9e-07]
[1733053717774,0.50701169,97176.0,97174.0,6.9e-07]
[1733053717775,0.15,97175.0,97174.0,6.9e-07]
[1733053718038,0.22127682,97175.0,97174.0,6.9e-07]
[1733053718274,0.21899969,97175.0,97174.0,6.9e-07]
[1733053719137,0.21999969,97175.0,97174.0,6.9e-07]
[1733053719359,0.22399969,97175.0,97174.0,6.9e-07]
[1733053721156,0.22399969,97175.0,97169.0,0.19988033]
[1733053721373,0.21582394,97170.0,97169.0,0.19988033]
[1733053724295,0.21882394,97170.0,97169.0,0.19988033]
[1733053727570,0.26832394,97170.0,97169.0,0.19988033]
[1733053734345,0.21882394,97170.0,97169.0,0.19988033]
[1733053735339,0.21882394,97170.0,97169.0,0.20074443]
[1733053735572,0.22055214,97170.0,97169.0,0.20074443]
[1733053736480,0.22055214,97170.0,97169.0,0.0008641]
[1733053737429,0.2105522,97170.0,97169.0,0.1256641]
[1733053737697,0.2105522,97170.0,97169.0,0.22850931]
[1733053738535,0.2075522,97170.0,97169.0,0.22850931]
[1733053738757,0.2075522,97170.0,97169.0,0.23050931]
[1733053740217,0.2085522,97170.0,97169.0,0.23050931]
[1733053740604,0.2075522,97170.0,97169.0,0.22850931]
[1733053741001,0.2085522,97170.0,97169.0,0.23050931]
[1733053742285,0.2085522,97170.0,97169.0,0.22850931]
[1733053743913,0.2075522,97170.0,97169.0,0.22850931]
[1733053744454,0.2085522,97170.0,97169.0,0.23050931]
[1733053745422,0.2085522,97170.0,97169.0,0.22850931]
[1733053745641,0.2075522,97170.0,97169.0,0.23050931]
[1733053746076,0.2085522,97170.0,97169.0,0.23050931]
[1733053753285,0.2085522,97170.0,97169.0,0.18740931]
[1733053753512,0.2085522,97170.0,97169.0,0.10570931]
[1733053757396,0.2085522,97170.0,97169.0,0.10370931]
[1733053757608,0.2085522,97170.0,97169.0,0.10470931]
[1733053758048,0.2075522,97170.0,97169.0,0.10470931]
[1733053758277,0.2075522,97170.0,97169.0,0.0008641]
[1733053758514,0.2553522,97170.0,97169.0,0.0018641]
[1733053759384,0.2543522,97170.0,97169.0,0.0018641]
[1733053759633,0.2553522,97170.0,97169.0,0.0008641]
[1733053760121,0.2543522,97170.0,97169.0,0.0008641]
[1733053761577,0.2553522,97170.0,97169.0,0.0008641]
[1733053761830,0.2543522,97170.0,97169.0,0.0018641]
[1733053762552,0.2543522,97170.0,97169.0,0.0008641]
[1733053763259,0.2563522,97170.0,97169.0,0.0008641]
[1733053765370,0.2543522,97170.0,97169.0,0.0008641]
[1733053765585,0.26435214,97170.0,97169.0,0.0008641]
[1733053766252,0.26635214,97170.0,97169.0,0.0008641]
[1733053767717,0.26435214,97170.0,97169.0,0.0008641]
[1733053768158,0.26635214,97170.0,97169.0,0.0008641]
[1733053768404,0.34245214,97170.0,97169.0,0.0008641]
[1733053768623,0.34045214,97170.0,97169.0,0.0008641]
[1733053769046,0.34245214,97170.0,97169.0,0.0008641]
[1733053769499,0.34045214,97170.0,97169.0,0.0008641]
[1733053771364,0.34245214,97170.0,97169.0,0.0008641]
[1733053771777,0.34045214,97170.0,97169.0,0.0008641]
[1733053771999,0.57703904,97170.0,97169.0,0.0008641]
[1733053772235,0.57903904,97170.0,97169.0,0.0008641]
[1733053772439,0.50245189,97170.0,97169.0,0.0008641]
[1733053773926,0.50345189,97170.0,97169.0,0.0008641]
[1733053774584,0.50045189,97170.0,97169.0,0.0008641]
[1733053775015,0.50345189,97170.0,97169.0,0.0008641]
[1733053778145,0.49345195,97170.0,97169.0,0.0008641]
[1733053778369,0.50345189,97170.0,97169.0,0.0008641]
[1733053779030,0.49345195,97170.0,97169.0,0.0008641]
[1733053779266,0.50345189,97170.0,97169.0,0.0008641]
[1733053780687,0.49345195,97170.0,97169.0,0.0008641]
[1733053780912,0.50345189,97170.0,97169.0,0.0008641]
[1733053782681,0.49345195,97170.0,97169.0,0.0008641]
[1733053782893,0.50345189,97170.0,97169.0,0.0008641]
[1733053801906,0.49345214,97170.0,97169.0,0.0008641]
[1733053804181,0.50345189,97170.0,97169.0,0.0008641]
[1733053805490,0.49345214,97170.0,97169.0,0.0008641]
[1733053805965,0.50345189,97170.0,97169.0,0.0008641]
[1733053815612,0.49345214,97170.0,97169.0,0.0008641]
[1733053815827,0.50345189,97170.0,97169.0,0.0008641]
[1733053816057,0.41735214,97170.0,97169.0,0.0008641]
[1733053821398,0.50935189,97170.0,97169.0,0.0008641]
[1733053826078,0.54138391,97170.0,97169.0,0.0008641]
[1733053826372,0.50935189,97170.0,97169.0,0.0008641]
[1733053832121,0.51211781,97170.0,97169.0,0.0008641]
[1733053840269,0.51503365,97170.0,97169.0,0.0008641]
[1733053851707,0.43303365,97170.0,97169.0,0.0008641]
[1733053868520,0.51163365,97170.0,97169.0,0.0008641]
[1733053888143,0.51163365,97170.0,97162.0,0.0525927]
[1733053888357,0.15,97164.0,97162.0,0.0525927]
[1733053888622,0.36583894,97163.0,97162.0,0.0525927]
[1733053888829,0.3721504,97163.0,97162.0,0.0525927]
[1733053889246,0.4202504,97163.0,97162.0,0.0525927]
[1733053890414,0.4212504,97163.0,97162.0,0.0525927]
[1733053891464,0.4222504,97163.0,97162.0,0.0525927]
[1733053897203,0.355842,97162.0,97159.0,0.0017278]
[1733053897430,0.00999994,97160.0,97159.0,0.0017278]
[1733053897610,0.01557694,97160.0,97159.0,0.0017278]
[1733053898626,0.01657694,97160.0,97159.0,0.0017278]
[1733053909065,0.06415422,97160.0,97159.0,0.0017278]
[1733053911091,0.29495422,97160.0,97159.0,0.0017278]
[1733053911266,0.29267694,97160.0,97159.0,0.0017278]
[1733053920202,0.06187694,97160.0,97159.0,0.0017278]
[1733053922228,0.01657694,97160.0,97159.0,0.0017278]
[1733053922437,0.006577,97160.0,97159.0,0.0017278]
[1733053923854,0.01657694,97160.0,97159.0,0.0017278]
[1733053925656,0.06377694,97160.0,97159.0,0.0017278]
[1733053929740,0.14635408,97160.0,97159.0,0.0017278]
[1733053929970,0.29635408,97160.0,97159.0,0.0017278]
[1733053930186,0.29407694,97160.0,97159.0,0.0017278]
[1733053932487,0.30407669,97160.0,97159.0,0.0017278]
[1733053933377,0.30307669,97160.0,97159.0,0.0017278]
[1733053934644,0.30607669,97160.0,97159.0,0.0017278]
[1733053940135,0.30591877,97160.0,97159.0,0.0017278]
[1733053943233,0.16841902,97160.0,97159.0,0.0017278]
[1733053943447,0.00841908,97160.0,97159.0,0.0017278]
[1733053944093,0.01841902,97160.0,97159.0,0.0017278]
[1733053945575,0.00841908,97160.0,97159.0,0.0017278]
[1733053946676,0.00841908,97160.0,97159.0,0.0011642]
[1733053946885,0.00541908,97160.0,97159.0,0.0011642]
[1733053947325,0.001,97160.0,97159.0,0.0031642]
[1733053947506,0.00747937,97160.0,97159.0,0.0031642]
[1733053947766,0.001,97160.0,97159.0,0.0031642]
[1733053948025,0.00747937,97160.0,97159.0,0.0031642]
[1733053948238,0.001,97160.0,97159.0,0.0031642]
[1733053948454,0.00747937,97160.0,97159.0,0.0031642]
[1733053948660,0.001,97160.0,97159.0,0.0031642]
[1733053948845,0.002,97160.0,97159.0,0.0031642]
[1733053949093,0.00847664,97160.0,97159.0,0.0031642]
[1733053949323,0.002,97160.0,97159.0,0.0031642]
[1733053949530,0.00747664,97160.0,97159.0,0.0031642]
[1733053949741,0.001,97160.0,97159.0,0.0031642]
[1733053949953,0.00747632,97160.0,97159.0,0.0031642]
[1733053950184,0.001,97160.0,97159.0,0.0031642]
[1733053950400,0.00747632,97160.0,97159.0,0.0031642]
[1733053950610,0.001,97160.0,97159.0,0.0031642]
[1733053950812,0.00747632,97160.0,97159.0,0.0031642]
[1733053951033,0.001,97160.0,97159.0,0.0031642]
[1733053951238,0.00747632,97160.0,97159.0,0.0031642]
[1733053959086,0.00920432,97160.0,97159.0,0.0031642]
[1733053966075,0.05680432,97160.0,97159.0,0.0031642]
[1733053966288,0.13280432,97160.0,97159.0,0.0031642]
[1733053975198,0.13180432,97160.0,97159.0,0.0011642]
[1733053975630,0.13180432,97160.0,97159.0,0.0031642]
[1733053975819,0.13180432,97160.0,97159.0,0.0011642]
[1733053976182,0.13180432,97160.0,97159.0,0.0021642]
[1733053976382,0.13180432,97160.0,97159.0,0.0011642]
[1733053976789,0.13180432,97160.0,97159.0,0.0031642]
[1733053977464,0.13280432,97160.0,97159.0,0.0031642]
[1733053977911,0.13180432,97160.0,97159.0,0.0031642]
[1733053978308,0.13380432,97160.0,97159.0,0.0031642]
[1733053979024,0.13380432,97160.0,97159.0,0.0011642]
[1733053979231,0.13380432,97160.0,97159.0,0.0031642]
[1733053979651,0.13380432,97160.0,97159.0,0.0011642]
[1733053980061,0.13380432,97160.0,97159.0,0.0031642]
[1733053980276,0.13180432,97160.0,97159.0,0.0031642]
[1733053980477,0.13280432,97160.0,97159.0,0.0031642]
[1733053981099,0.13180432,97160.0,97159.0,0.0031642]
[1733053981513,0.13380432,97160.0,97159.0,0.0031642]
[1733053981716,0.13380432,97160.0,97159.0,0.0011642]
[1733053982065,0.13180432,97160.0,97159.0,0.0031642]
[1733053982314,0.13180432,97160.0,97159.0,0.0011642]
[1733053982706,0.13180432,97160.0,97159.0,0.0021642]
[1733053982859,0.13180432,97160.0,97159.0,0.0011642]
[1733053983302,0.13180432,97160.0,97159.0,0.0031642]
[1733053984201,0.13280432,97160.0,97159.0,0.0031642]
[1733053984695,0.13180432,97160.0,97159.0,0.0031642]
[1733053985378,0.13380432,97160.0,97159.0,0.0031642]
[1733053985614,0.13380432,97160.0,97159.0,0.0011642]
[1733053986071,0.13180432,97160.0,97159.0,0.0031642]
[1733053986297,0.13180432,97160.0,97159.0,0.0011642]
[1733053986741,0.14180407,97160.0,97159.0,0.0031642]
[1733053986960,0.14408125,97160.0,97159.0,0.0031642]
[1733053987565,0.14508125,97160.0,97159.0,0.0031642]
[1733053987788,0.15508119,97160.0,97159.0,0.0031642]
[1733053988226,0.15408119,97160.0,97159.0,0.0011642]
[1733053988674,0.15608119,97160.0,97159.0,0.0031642]
[1733053988904,0.15608119,97160.0,97159.0,0.0011642]
[1733053989136,0.15408119,97160.0,97159.0,0.0011642]
[1733053989384,0.15508119,97160.0,97159.0,0.0031642]
[1733053989567,0.15508119,97160.0,97159.0,0.0011642]
[1733053990029,0.15508119,97160.0,97159.0,0.0021642]
[1733053990902,0.15408119,97160.0,97159.0,0.0021642]
[1733053991114,0.15708119,97160.0,97159.0,0.0021642]
[1733053996100,0.30708119,97160.0,97159.0,0.0021642]
[1733053996343,0.30480401,97160.0,97159.0,0.0021642]
[1733054009609,0.30480401,97160.0,97159.0,2e-07]
[1733054017728,0.30480401,97160.0,97159.0,0.0008642]
[1733054023243,0.30480401,97160.0,97159.0,0.000864]
[1733054023601,0.30780401,97160.0,97159.0,0.000864]
[1733054024019,0.30480401,97160.0,97159.0,0.000864]
[1733054024209,0.30180401,97160.0,97159.0,0.000864]
[1733054024599,0.30680401,97160.0,97159.0,0.000864]
[1733054025125,0.30180401,97160.0,97159.0,0.000864]
[1733054025584,0.30380401,97160.0,97159.0,0.000864]
[1733054026026,0.30180401,97160.0,97159.0,0.001864]
[1733054026362,0.30180401,97160.0,97159.0,0.000864]
[1733054026802,0.30180401,97160.0,97159.0,0.001864]
[1733054027238,0.30180401,97160.0,97159.0,0.000864]
[1733054027470,0.30180401,97160.0,97159.0,0.001864]
[1733054027721,0.30380401,97160.0,97159.0,0.001864]
[1733054028013,0.30380401,97160.0,97159.0,0.000864]
[1733054028212,0.30180401,97160.0,97159.0,0.000864]
[1733054028541,0.30480401,97160.0,97159.0,0.000864]
[1733054028955,0.30180401,97160.0,97159.0,0.000864]
[1733054029385,0.30380401,97160.0,97159.0,0.000864]
[1733054029576,0.30380401,97160.0,97159.0,0.001864]
[1733054030444,0.30380401,97160.0,97159.0,0.000864]
[1733054030699,0.30180401,97160.0,97159.0,0.000864]
[1733054030908,0.30180401,97160.0,97159.0,0.001864]
[1733054031118,0.30480401,97160.0,97159.0,0.001864]
[1733054031756,0.30180401,97160.0,97159.0,0.001864]
[1733054031956,0.30380401,97160.0,97159.0,0.001864]
[1733054033007,0.30380401,97160.0,97159.0,0.000864]
[1733054033214,0.30380401,97160.0,97159.0,0.001864]
[1733054033666,0.30380401,97160.0,97159.0,0.000864]
[1733054033872,0.30380401,97160.0,97159.0,0.001864]
[1733054047361,0.02020407,97160.0,97159.0,0.001864]
[1733054047582,0.03020401,97160.0,97159.0,0.001864]
[1733054051105,0.01020432,97160.0,97159.0,0.001864]
[1733054051951,0.01020432,97160.0,97159.0,0.044964]
[1733054052192,0.00820432,97160.0,97159.0,0.044964]
[1733054052421,0.00820432,97160.0,97159.0,0.043964]
[1733054052650,0.00920432,97160.0,97159.0,0.044964]
[1733054053653,0.00920432,97160.0,97159.0,0.001864]
[1733054054549,0.00820432,97160.0,97159.0,0.000864]
[1733054054799,0.00820432,97160.0,97159.0,0.003864]
[1733054054800,0.00920432,97160.0,97159.0,0.003864]
[1733054055618,0.00920432,97160.0,97159.0,0.10670921]
[1733054088254,0.18633277,97162.0,97159.0,0.10670921]
[1733054088470,0.18633277,97162.0,97160.0,0.10284521]
[1733054089958,0.18733277,97162.0,97160.0,0.10284521]
[1733054090164,0.18633277,97162.0,97160.0,0.10284521]
[1733054090385,0.16315482,97162.0,97160.0,0.10284521]
[1733054090831,0.16315482,97162.0,97161.0,0.03211327]
[1733054090832,0.001728,97162.0,97161.0,0.03211327]
[1733054091052,0.001728,97162.0,97161.0,0.13495848]
[1733054091787,0.002728,97162.0,97161.0,0.13495848]
[1733054091993,0.001728,97162.0,97161.0,0.13495848]
[1733054092349,0.002728,97162.0,97161.0,0.13895848]
[1733054092978,0.002728,97162.0,97161.0,0.10684521]
[1733054105578,0.205841,97162.0,97161.0,0.10684521]
[1733054108638,0.47955166,97163.0,97161.0,0.10684521]
[1733054108818,0.47955166,97163.0,97162.0,0.13491268]
[1733054109825,0.47955166,97163.0,97162.0,0.10284521]
[1733054110027,0.47955166,97163.0,97162.0,0.10684521]
[1733054110028,0.48055166,97163.0,97162.0,0.10684521]
[1733054111416,0.47955166,97163.0,97162.0,0.10684521]
[1733054111850,0.48055166,97163.0,97162.0,0.10684521]
[1733054113327,0.52675166,97163.0,97162.0,0.10684521]
[1733054115659,0.37496928,97163.0,97162.0,0.10684521]
[1733054120656,0.26140601,97163.0,97162.0,0.10684521]
[1733054123533,0.26140601,97163.0,97162.0,0.10770911]
[1733054123742,0.26313381,97163.0,97162.0,0.10770911]
[1733054124848,0.21693381,97163.0,97162.0,0.10770911]
[1733054125785,0.21693381,97163.0,97162.0,0.1398115]
[1733054125987,0.19375874,97163.0,97162.0,0.1398115]
[1733054129231,0.19375874,97163.0,97162.0,0.1358115]
[1733054129455,0.19275874,97163.0,97162.0,0.1358115]
[1733054129874,0.19375874,97163.0,97162.0,0.1358115]
[1733054130077,0.19375874,97163.0,97162.0,0.1388115]
[1733054130483,0.04130055,97163.0,97162.0,0.1358115]
[1733054130994,0.04230055,97163.0,97162.0,0.1448115]
[1733054131411,0.04230055,97163.0,97162.0,0.1468115]
[1733054136407,0.04230055,97163.0,97162.0,0.1698115]
[1733054139911,0.04230055,97163.0,97162.0,0.2524115]
[1733054140606,0.0101171,97163.0,97162.0,0.2524115]
[1733054141004,0.0347326,97176.0,97164.0,0.023]
[1733054141190,0.0347326,97176.0,97165.0,0.1349476]
[1733054141397,0.0751,97182.0,97166.0,0.05510239]
[1733054141595,0.0751,97182.0,97168.0,0.023]
[1733054141857,0.0751,97182.0,97169.0,0.1349476]
[1733054142047,0.0751,97182.0,97171.0,0.023]
[1733054142202,0.0751,97182.0,97172.0,0.1349476]
[1733054142442,0.0751,97182.0,97173.0,0.03210239]
[1733054142881,0.0751,97182.0,97174.0,0.10284521]
[1733054144078,0.0475,97181.0,97174.0,0.10284521]
[1733054144293,0.0027282,97177.0,97175.0,0.03205856]
[1733054144494,0.0027282,97177.0,97176.0,0.10284521]
[1733054144939,0.0027282,97177.0,97176.0,0.15789685]
[1733054145581,0.0017282,97177.0,97176.0,0.15789685]
[1733054146015,0.0027282,97177.0,97176.0,0.15789685]
[1733054146218,0.0017282,97177.0,97176.0,0.15789685]
[1733054146456,0.0017282,97177.0,97176.0,0.24549685]
[1733054146662,0.0027282,97177.0,97176.0,0.25449685]
[1733054147063,0.0027282,97177.0,97176.0,0.30129685]
[1733054150454,0.0477,97194.0,97176.0,0.30129685]
[1733054150655,0.0477,97194.0,97177.0,0.023]
[1733054150850,0.0477,97194.0,97178.0,0.10284521]
[1733054151072,0.0477,97194.0,97179.0,0.023]
[1733054151296,0.0477,97194.0,97177.0,0.023]
[1733054151297,0.0477,97194.0,97180.0,0.10284521]
[1733054151511,0.205776,97193.0,97181.0,0.023]
[1733054151716,0.205776,97193.0,97182.0,0.10284521]
[1733054153935,0.0477,97194.0,97182.0,0.10384521]
[1733054154178,0.0477,97194.0,97182.0,0.10784521]
[1733054154415,0.205776,97193.0,97182.0,0.10784521]
[1733054154874,0.0477,97194.0,97182.0,0.10784521]
[1733054155360,0.0477,97194.0,97182.0,0.10684521]
[1733054155835,0.0477,97194.0,97182.0,0.10784521]
[1733054156294,0.0477,97194.0,97182.0,0.10684521]
[1733054156771,0.0477,97194.0,97182.0,0.10584521]
[1733054157012,0.0477,97194.0,97182.0,0.10884521]
[1733054157491,0.0477,97194.0,97182.0,0.10584521]
[1733054157730,0.0487,97194.0,97182.0,0.11284521]
[1733054158384,0.205776,97193.0,97182.0,0.11284521]
[1733054159052,0.0487,97194.0,97182.0,0.11284521]
[1733054159520,0.0027278,97194.0,97182.0,0.10984521]
[1733054159739,0.0027278,97194.0,97190.0,0.205781]
[1733054160153,0.0017278,97194.0,97191.0,0.10284521]
[1733054160419,0.0017278,97194.0,97192.0,0.205778]
[1733054160648,0.001,97193.0,97190.0,0.205781]
[1733054160887,0.001,97193.0,97191.0,0.03198845]
[1733054161080,0.0017278,97194.0,97191.0,0.13483366]
[1733054161335,0.0017278,97194.0,97192.0,0.34061166]
[1733054161555,0.0027278,97194.0,97193.0,0.26153366]
[1733054161797,0.0017278,97194.0,97193.0,0.26153366]
[1733054162045,0.0008643,97199.0,97193.0,0.26153366]
[1733054162284,0.0008643,97199.0,97198.0,0.10284521]
[1733054163007,0.0008643,97199.0,97198.0,0.13481379]
[1733054163238,0.0008643,97199.0,97198.0,0.10284521]
[1733054163476,0.00092379,97199.0,97198.0,0.10284521]
[1733054163952,0.00092379,97199.0,97198.0,0.10984521]
[1733054165155,0.047,97209.0,97198.0,0.10984521]
[1733054165386,0.047,97209.0,97199.0,0.10284521]
[1733054166111,0.205744,97208.0,97199.0,0.10284521]
[1733054167492,0.205744,97208.0,97199.0,0.11184521]
[1733054168312,0.047,97209.0,97199.0,0.11184521]
[1733054169003,0.205744,97208.0,97199.0,0.11184521]
[1733054169220,0.047,97209.0,97199.0,0.11684521]
[1733054169444,0.205746,97207.0,97199.0,0.11684521]
[1733054169658,0.205746,97207.0,97199.0,0.10784521]
[1733054169885,0.00451691,97206.0,97199.0,0.10284521]
[1733054170095,0.00451691,97205.0,97199.0,0.10284521]
[1733054170328,0.047,97209.0,97199.0,0.11684521]
[1733054170539,0.205744,97208.0,97199.0,0.11684521]
[1733054170766,0.205744,97208.0,97199.0,0.10284521]
[1733054170984,0.205744,97208.0,97199.0,0.11184521]
[1733054171210,0.205744,97208.0,97199.0,0.10884521]
[1733054171687,0.0487276,97209.0,97199.0,0.11784521]
[1733054172386,0.205744,97208.0,97199.0,0.11784521]
[1733054172838,0.205744,97208.0,97199.0,0.11184521]
[1733054173073,0.205744,97208.0,97199.0,0.10284521]
[1733054173338,0.205744,97208.0,97199.0,0.11684521]
[1733054177117,0.205744,97208.0,97200.0,0.03197498]
[1733054177505,0.205744,97208.0,97201.0,0.10284521]
[1733054179447,0.205754,97204.0,97201.0,0.10284521]
[1733054179697,0.205746,97207.0,97201.0,0.10284521]
[1733054180243,0.18258105,97207.0,97201.0,0.11184521]
[1733054180464,0.18258105,97207.0,97201.0,0.10284521]
[1733054180910,0.18258105,97207.0,97201.0,0.11784521]
[1733054181142,0.205757,97202.0,97201.0,0.11784521]
[1733054181371,0.333457,97202.0,97201.0,0.11784521]
[1733054182698,0.333457,97202.0,97201.0,0.10884521]
[1733054183126,0.333457,97202.0,97201.0,0.11184521]
[1733054183347,0.333457,97202.0,97201.0,0.10284521]
[1733054183624,0.333457,97202.0,97201.0,0.11684521]
[1733054184057,0.333457,97202.0,97201.0,0.10984521]
[1733054184482,0.333457,97202.0,97201.0,0.11284521]
[1733054189834,0.252557,97202.0,97201.0,0.11284521]
[1733054190052,0.205757,97202.0,97201.0,0.11284521]
[1733054190909,0.333757,97202.0,97201.0,0.11284521]
[1733054191984,0.333757,97202.0,97201.0,0.10984521]
[1733054192462,0.333757,97202.0,97201.0,0.11184521]
[1733054192870,0.333757,97202.0,97201.0,0.10484521]
[1733054193300,0.333757,97202.0,97201.0,0.10884521]
[1733054193481,0.333757,97202.0,97201.0,0.10484521]
[1733054193741,0.333757,97202.0,97201.0,0.002]
[1733054193924,0.333757,97202.0,97201.0,0.006]
[1733054194197,0.333757,97202.0,97201.0,0.004]
[1733054194586,0.333757,97202.0,97201.0,0.002]
[1733054195173,0.333757,97202.0,97199.0,0.0008636]
[1733054195174,0.411514,97202.0,97199.0,0.0008636]
[1733054195380,0.205761,97200.0,97199.0,0.0008636]